fUST/lending_fUST_20250723
["ID","MTS","AMOUNT","RATE_DAILY","PERIOD"]
[374103234,1753206644346,-160.0,0.0001811,2]
[374103235,1753206644355,-160.0,0.0001811,2]
[374103236,1753206644365,-839.90542673,0.0001811,2]
[374103237,1753206644374,-2395.26254916,0.00018176,2]
[374103238,1753206644384,-460.0,0.00018199,2]
[374103239,1753206644393,-460.0,0.00018199,2]
[374103240,1753206644403,-1039.63,0.00018199,2]
[374103241,1753206644418,-1204.69,0.000182,2]
[374103242,1753206644427,-496.27,0.000182,2]
[374103243,1753206644436,-460.0,0.000182,2]
[374103244,1753206644445,-460.0,0.000182,2]
[374103245,1753206644454,-460.0,0.000182,2]
[374103246,1753206644464,-460.0,0.000182,2]
[374103247,1753206644473,-460.0,0.000182,2]
[374103248,1753206644483,-460.0,0.000182,2]
[374103249,1753206644493,-460.0,0.000182,2]
[374103250,1753206644502,-460.0,0.000182,2]
[374103251,1753206644512,-460.0,0.000182,2]
[374103252,1753206644522,-1072.57,0.000182,2]
[374103253,1753206644532,-460.0,0.000182,2]
[374103254,1753206644541,-460.0,0.000182,2]
[374103255,1753206644550,-1174.48,0.000182,2]
[374103256,1753206644560,-460.0,0.000182,2]
[374103257,1753206644571,-460.0,0.000182,2]
[374103258,1753206644580,-460.0,0.000182,2]
[374103259,1753206644590,-460.0,0.000182,2]
[374103260,1753206644598,-460.0,0.000182,2]
[374103261,1753206644608,-1158.31,0.000182,2]
[374103262,1753206644618,-840.88,0.000182,2]
[374103263,1753206644627,-460.0,0.000182,2]
[374103264,1753206644637,-460.0,0.000182,2]
[374103265,1753206644646,-460.0,0.000182,2]
[374103266,1753206644656,-460.0,0.000182,2]
[374103267,1753206644667,-460.0,0.000182,2]
[374103268,1753206644677,-460.0,0.000182,2]
[374103269,1753206644686,-773.58,0.000182,2]
[374103270,1753206644706,-460.0,0.000182,2]
[374103271,1753206644716,-460.0,0.000182,2]
[374103272,1753206644726,-460.0,0.000182,2]
[374103273,1753206644736,-460.0,0.000182,2]
[374103274,1753206644745,-460.0,0.000182,2]
[374103275,1753206644756,-460.0,0.000182,2]
[374103276,1753206644765,-395.68413524,0.00018201,2]
[374103277,1753206644774,-460.0,0.00018201,2]
[374103278,1753206644784,-460.0,0.00018201,2]
[374103279,1753206644793,-460.0,0.00018201,2]
[374103280,1753206644802,-460.0,0.00018201,2]
[374103281,1753206644811,-460.0,0.00018201,2]
[374103282,1753206644821,-460.0,0.00018201,2]
[374103283,1753206644831,-460.0,0.00018203,2]
[374103284,1753206644840,-460.0,0.00018203,2]
[374103285,1753206644850,-460.0,0.00018203,2]
[374103286,1753206644859,-460.0,0.00018203,2]
[374103287,1753206644868,-688.95,0.00018203,2]
[374103288,1753206644877,-420.0,0.00018383,2]
[374103289,1753206644887,-2395.26254916,0.00018452,2]
[374103290,1753206644897,-160.0,0.0001846,2]
[374103291,1753206644906,-460.0,0.00018473,2]
[374103292,1753206644919,-460.0,0.00018473,2]
[374103293,1753206644928,-1039.63,0.00018473,2]
[374103294,1753206644938,-1204.69,0.00018474,2]
[374103295,1753206644950,-496.27,0.00018474,2]
[374103296,1753206644959,-460.0,0.00018474,2]
[374103297,1753206644968,-460.0,0.00018474,2]
[374103298,1753206644978,-460.0,0.00018474,2]
[374103299,1753206644989,-460.0,0.00018474,2]
[374103300,1753206644998,-460.0,0.00018474,2]
[374103301,1753206645007,-460.0,0.00018474,2]
[374103302,1753206645019,-1072.57,0.00018474,2]
[374103303,1753206645028,-460.0,0.00018474,2]
[374103304,1753206645037,-460.0,0.00018474,2]
[374103305,1753206645047,-1174.48,0.00018474,2]
[374103306,1753206645057,-460.0,0.00018474,2]
[374103307,1753206645067,-460.0,0.00018474,2]
[374103308,1753206645076,-460.0,0.00018474,2]
[374103309,1753206645087,-460.0,0.00018474,2]
[374103310,1753206645097,-460.0,0.00018474,2]
[374103311,1753206645107,-1158.31,0.00018474,2]
[374103312,1753206645116,-840.88,0.00018474,2]
[374103313,1753206645126,-460.0,0.00018474,2]
[374103314,1753206645136,-460.0,0.00018474,2]
[374103315,1753206645145,-460.0,0.00018474,2]
[374103316,1753206645155,-460.0,0.00018474,2]
[374103317,1753206645166,-460.0,0.00018474,2]
[374103318,1753206645176,-460.0,0.00018474,2]
[374103319,1753206645185,-773.58,0.00018474,2]
[374103320,1753206645195,-460.0,0.00018474,2]
[374103321,1753206645205,-460.0,0.00018474,2]
[374103322,1753206645214,-460.0,0.00018474,2]
[374103323,1753206645223,-460.0,0.00018474,2]
[374103324,1753206645234,-460.0,0.00018474,2]
[374103325,1753206645243,-460.0,0.00018475,2]
[374103326,1753206645253,-460.0,0.00018475,2]
[374103327,1753206645263,-460.0,0.00018475,2]
[374103328,1753206645273,-460.0,0.00018475,2]
[374103329,1753206645283,-531.0,0.00018475,2]
[374103330,1753206645293,-460.0,0.00018475,2]
[374103331,1753206645303,-460.0,0.00018477,2]
[374103332,1753206645314,-460.0,0.00018477,2]
[374103333,1753206645324,-460.0,0.00018477,2]
[374103334,1753206645334,-460.0,0.00018477,2]
[374103335,1753206645354,-688.95,0.00018477,2]
[374103336,1753206645374,-2395.26254916,0.00018728,2]
[374103337,1753206645396,-460.0,0.00018747,2]
[374103338,1753206645428,-1039.63,0.00018747,2]
[374103339,1753206645468,-1204.69,0.00018748,2]
[374103340,1753206645503,-496.27,0.00018748,2]
[374103341,1753206645525,-164.54,0.00018748,2]
[374103343,1753206645548,-339.08,0.00018748,2]
[374103344,1753206645569,-460.0,0.00018748,2]
[374103345,1753206645591,-460.0,0.00018748,2]
[374103346,1753206645613,-1072.57,0.00018748,2]
[374103347,1753206645636,-460.0,0.00018748,2]
[374103348,1753206645656,-1174.48,0.00018748,2]
[374103349,1753206645703,-460.0,0.00018748,2]
[374103350,1753206645726,-460.0,0.00018748,2]
[374103351,1753206645748,-460.0,0.00018748,2]
[374103352,1753206645770,-460.0,0.00018748,2]
[374103353,1753206645792,-460.0,0.00018748,2]
[374103354,1753206645815,-1158.31,0.00018748,2]
[374103355,1753206645837,-460.0,0.00018748,2]
[374103356,1753206645861,-840.88,0.00018748,2]
[374103357,1753206645882,-460.0,0.00018748,2]
[374103358,1753206645905,-460.0,0.00018748,2]
[374103359,1753206645951,-460.0,0.00018748,2]
[374103360,1753206645972,-460.0,0.00018748,2]
[374103361,1753206645995,-460.0,0.00018748,2]
[374103362,1753206646011,-773.58,0.00018748,2]
[374103363,1753206646021,-460.0,0.00018748,2]
[374103365,1753206646030,-460.0,0.00018748,2]
[374103367,1753206646040,-460.0,0.00018748,2]
[374103368,1753206646177,-460.0,0.00018748,2]
[374103369,1753206646188,-460.0,0.00018748,2]
[374103370,1753206646199,-460.0,0.00018749,2]
[374103371,1753206646209,-460.0,0.00018749,2]
[374103372,1753206646219,-460.0,0.00018749,2]
[374103373,1753206646229,-289.74,0.00018749,2]
[374103374,1753206646240,-460.0,0.00018749,2]
[374103375,1753206646250,-460.0,0.00018751,2]
[374103376,1753206646260,-460.0,0.00018751,2]
[374103377,1753206646270,-460.0,0.00018751,2]
[374103378,1753206646280,-460.0,0.00018751,2]
[374103379,1753206646289,-688.95,0.00018751,2]
[374103380,1753206646299,-2395.26254916,0.00019003,2]
[374103381,1753206646308,-260.0,0.00019008,2]
[374103382,1753206646318,-460.0,0.00019021,2]
[374103383,1753206646328,-1039.63,0.00019021,2]
[374103384,1753206646337,-1204.69,0.00019022,2]
[374103385,1753206646347,-496.27,0.00019022,2]
[374103386,1753206646357,-460.0,0.00019022,2]
[374103387,1753206646366,-460.0,0.00019022,2]
[374103388,1753206646376,-1072.57,0.00019022,2]
[374103389,1753206646386,-460.0,0.00019022,2]
[374103390,1753206646397,-1174.48,0.00019022,2]
[374103391,1753206646406,-555.28,0.00019022,2]
[374103392,1753206646417,-208.22381978,0.00019022,2]
[374103393,1753206646426,-460.0,0.00019022,2]
[374103394,1753206646435,-460.0,0.00019022,2]
[374103395,1753206646446,-460.0,0.00019022,2]
[374103396,1753206646456,-1158.31,0.00019022,2]
[374103397,1753206646466,-460.0,0.00019022,2]
[374103398,1753206646475,-840.88,0.00019022,2]
[374103399,1753206646486,-460.0,0.00019022,2]
[374103400,1753206646496,-460.0,0.00019022,2]
[374103401,1753206646505,-460.0,0.00019022,2]
[374103402,1753206646515,-460.0,0.00019022,2]
[374103403,1753206646524,-773.58,0.00019022,2]
[374103404,1753206646533,-460.0,0.00019022,2]
[374103405,1753206646542,-460.0,0.00019022,2]
[374103406,1753206646553,-289.19,0.00019022,2]
[374103407,1753206646562,-460.0,0.00019022,2]
[374103408,1753206646571,-460.0,0.00019022,2]
[374103409,1753206646582,-460.0,0.00019023,2]
[374103410,1753206646591,-460.0,0.00019023,2]
[374103411,1753206646606,-460.0,0.00019023,2]
[374103412,1753206646616,-460.0,0.00019025,2]
[374103413,1753206646625,-460.0,0.00019025,2]
[374103414,1753206646634,-460.0,0.00019025,2]
[374103415,1753206646644,-460.0,0.00019025,2]
[374103416,1753206646653,-688.95,0.00019025,2]
[374103417,1753206646664,-172.667001,0.00019178,2]
[374103418,1753206646674,-3357.5976194,0.00019178,2]
[374103419,1753206646683,-2395.26254916,0.00019279,2]
[374103420,1753206646693,-460.0,0.00019295,2]
[374103421,1753206646703,-1039.63,0.00019295,2]
[374103422,1753206646713,-1204.69,0.00019296,2]
[374103423,1753206646722,-496.27,0.00019296,2]
[374103424,1753206646731,-460.0,0.00019296,2]
[374103425,1753206646741,-460.0,0.00019296,2]
[374103426,1753206646750,-1072.57,0.00019296,2]
[374103427,1753206646759,-460.0,0.00019296,2]
[374103428,1753206646769,-1174.48,0.00019296,2]
[374103429,1753206646779,-460.0,0.00019296,2]
[374103430,1753206646788,-460.0,0.00019296,2]
[374103431,1753206646798,-1158.31,0.00019296,2]
[374103432,1753206646807,-460.0,0.00019296,2]
[374103433,1753206646817,-840.88,0.00019296,2]
[374103434,1753206646826,-591.1,0.00019296,2]
[374103435,1753206646835,-460.0,0.00019296,2]
[374103436,1753206646845,-773.58,0.00019296,2]
[374103437,1753206646854,-460.0,0.00019296,2]
[374103438,1753206646863,-460.0,0.00019296,2]
[374103439,1753206646873,-460.0,0.00019296,2]
[374103440,1753206646883,-460.0,0.00019297,2]
[374103441,1753206646892,-460.0,0.00019297,2]
[374103442,1753206646902,-460.0,0.00019299,2]
[374103443,1753206646912,-460.0,0.00019299,2]
[374103444,1753206646922,-460.0,0.00019299,2]
[374103445,1753206646931,-460.0,0.00019299,2]
[374103446,1753206646941,-688.95,0.00019299,2]
[374103447,1753206646952,-151.0,0.00019329,2]
[374103448,1753206646962,-151.0,0.00019329,2]
[374103449,1753206646972,-151.0,0.00019329,2]
[374103450,1753206646982,-74048.952088,0.00019329,2]
[374103451,1753206646992,-500.0,0.00019373,2]
[374103452,1753206647001,-500.0,0.00019373,2]
[374103453,1753206647011,-2395.26254916,0.00019555,2]
[374103454,1753206647025,-360.0,0.00019556,2]
[374103455,1753206647035,-1039.63,0.00019569,2]
[374103456,1753206647046,-460.0,0.0001957,2]
[374103457,1753206647056,-460.0,0.0001957,2]
[374103458,1753206647065,-460.0,0.0001957,2]
[374103459,1753206647074,-460.0,0.0001957,2]
[374103460,1753206647083,-460.0,0.0001957,2]
[374103461,1753206647092,-460.0,0.0001957,2]
[374103462,1753206647102,-460.0,0.0001957,2]
[374103463,1753206647111,-460.0,0.0001957,2]
[374103464,1753206647120,-1204.69,0.0001957,2]
[374103465,1753206647130,-496.27,0.0001957,2]
[374103466,1753206647138,-211.16,0.0001957,2]
[374103467,1753206647147,-460.0,0.0001957,2]
[374103468,1753206647157,-1072.57,0.0001957,2]
[374103469,1753206647167,-460.0,0.0001957,2]
[374103470,1753206647176,-1174.48,0.0001957,2]
[374103471,1753206647186,-460.0,0.0001957,2]
[374103472,1753206647195,-1158.31,0.0001957,2]
[374103473,1753206647204,-460.0,0.0001957,2]
[374103474,1753206647213,-840.88,0.0001957,2]
[374103475,1753206647222,-460.0,0.0001957,2]
[374103476,1753206647231,-773.58,0.0001957,2]
[374103477,1753206647240,-460.0,0.0001957,2]
[374103478,1753206647250,-460.0,0.0001957,2]
[374103479,1753206647259,-460.0,0.0001957,2]
[374103480,1753206647268,-780.51285141,0.0001957,2]
[374103481,1753206647277,-460.0,0.00019571,2]
[374103482,1753206647286,-460.0,0.00019571,2]
[374103483,1753206647295,-460.0,0.00019573,2]
[374103484,1753206647304,-460.0,0.00019573,2]
[374103485,1753206647313,-460.0,0.00019573,2]
[374103486,1753206647322,-460.0,0.00019573,2]
[374103487,1753206647331,-688.95,0.00019573,2]
[374103488,1753206647341,-2395.26254916,0.00019831,2]
[374103489,1753206647350,-1039.63,0.00019843,2]
[374103490,1753206647359,-1204.69,0.00019844,2]
[374103491,1753206647368,-496.27,0.00019844,2]
[374103492,1753206647377,-460.0,0.00019844,2]
[374103493,1753206647387,-460.0,0.00019844,2]
[374103494,1753206647395,-1072.57,0.00019844,2]
[374103495,1753206647405,-1174.48,0.00019844,2]
[374103496,1753206647417,-460.0,0.00019844,2]
[374103497,1753206647426,-1158.31,0.00019844,2]
[374103498,1753206647435,-460.0,0.00019844,2]
[374103499,1753206647445,-840.88,0.00019844,2]
[374103500,1753206647454,-460.0,0.00019844,2]
[374103501,1753206647463,-773.58,0.00019844,2]
[374103502,1753206647473,-460.0,0.00019844,2]
[374103503,1753206647482,-460.0,0.00019844,2]
[374103504,1753206647492,-460.0,0.00019844,2]
[374103505,1753206647501,-460.0,0.00019845,2]
[374103506,1753206647511,-197.1,0.00019845,2]
[374103507,1753206647520,-460.0,0.00019847,2]
[374103508,1753206647530,-460.0,0.00019847,2]
[374103509,1753206647540,-460.0,0.00019847,2]
[374103510,1753206647549,-460.0,0.00019847,2]
[374103511,1753206647558,-688.95,0.00019847,2]
[374103512,1753206647568,-500.0,0.00019906,2]
[374103513,1753206647577,-500.0,0.00019906,2]
[374103514,1753206647587,-165.42282706,0.00019906,2]
[374103515,1753206647597,-1000.0,0.00019921,2]
[374103516,1753206647607,-151.0,0.00019933,2]
[374103517,1753206647616,-151.0,0.00019933,2]
[374103518,1753206647626,-151.0,0.00019933,2]
[374103519,1753206647636,-184.17851102,0.00019933,2]
[374103520,1753206647646,-500.0,0.00019933,2]
[374103521,1753206647656,-215.0738,0.00019933,2]
[374103522,1753206647671,-151.0,0.00019933,2]
[374103523,1753206647681,-500.0,0.00019933,2]
[374103524,1753206647692,-151.0,0.00019933,2]
[374103525,1753206647701,-151.0,0.00019933,2]
[374103526,1753206647711,-500.0,0.00019933,2]
[374103527,1753206647722,-515.71519755,0.00019933,2]
[374103528,1753206647732,-3801.642,0.00019933,2]
[374103529,1753206647742,-151.0,0.00019933,2]
[374103530,1753206647751,-151.0,0.00019933,2]
[374103531,1753206647760,-151.0,0.00019933,2]
[374103532,1753206647770,-151.0,0.00019933,2]
[374103533,1753206647780,-199.88962101,0.00019933,2]
[374103534,1753206647790,-151.0,0.00019933,2]
[374103535,1753206647800,-151.0,0.00019933,2]
[374103536,1753206647810,-151.0,0.00019933,2]
[374103537,1753206647819,-151.0,0.00019933,2]
[374103538,1753206647829,-151.0,0.00019933,2]
[374103539,1753206647840,-151.0,0.00019933,2]
[374103540,1753206647849,-151.0,0.00019933,2]
[374103541,1753206647859,-151.0,0.00019933,2]
[374103542,1753206647869,-151.0,0.00019933,2]
[374103543,1753206647878,-151.0,0.00019933,2]
[374103544,1753206647889,-151.0,0.00019933,2]
[374103545,1753206647899,-151.0,0.00019933,2]
[374103546,1753206647912,-151.0,0.00019933,2]
[374103547,1753206647922,-151.0,0.00019933,2]
[374103548,1753206647932,-151.0,0.00019933,2]
[374103549,1753206647947,-151.0,0.00019933,2]
[374103550,1753206647960,-151.0,0.00019933,2]
[374103551,1753206647970,-151.0,0.00019933,2]
[374103552,1753206647979,-151.0,0.00019933,2]
[374103553,1753206647991,-151.0,0.00019933,2]
[374103554,1753206648000,-151.0,0.00019933,2]
[374103555,1753206648010,-151.0,0.00019933,2]
[374103556,1753206648019,-151.0,0.00019933,2]
[374103557,1753206648030,-151.0,0.00019933,2]
[374103558,1753206648040,-151.0,0.00019933,2]
[374103559,1753206648050,-151.0,0.00019933,2]
[374103560,1753206648060,-151.0,0.00019933,2]
[374103561,1753206648069,-151.0,0.00019933,2]
[374103562,1753206648079,-25000.0,0.00019933,2]
[374103563,1753206648089,-17837.59225764,0.00019933,2]
[374103564,1753206648099,-3942.302754,0.00019988,2]
[374103565,1753206648109,-4088.1679559,0.00020043,2]
[374103566,1753206648119,-587.0,0.00020082,2]
[374103567,1753206648128,-151.0,0.00020098,2]
[374103568,1753206648138,-2992.07952056,0.00020098,2]
[374103569,1753206648148,-460.0,0.00020104,2]
[374103570,1753206648160,-2395.26254916,0.00020107,2]
[374103571,1753206648170,-1039.63,0.00020117,2]
[374103572,1753206648181,-1204.69,0.00020118,2]
[374103573,1753206648191,-496.27,0.00020118,2]
[374103574,1753206648201,-460.0,0.00020118,2]
[374103575,1753206648210,-460.0,0.00020118,2]
[374103576,1753206648220,-1072.57,0.00020118,2]
[374103577,1753206648231,-1174.48,0.00020118,2]
[374103578,1753206648241,-460.0,0.00020118,2]
[374103579,1753206648250,-1158.31,0.00020118,2]
[374103580,1753206648260,-460.0,0.00020118,2]
[374103581,1753206648270,-840.88,0.00020118,2]
[374103582,1753206648280,-250.6,0.00020118,2]
[374103583,1753206648290,-773.58,0.00020118,2]
[374103584,1753206648300,-460.0,0.00020118,2]
[374103585,1753206648312,-460.0,0.00020118,2]
[374103586,1753206648329,-460.0,0.00020118,2]
[374103587,1753206648345,-424.68,0.00020119,2]
[374103588,1753206648355,-460.0,0.00020121,2]
[374103589,1753206648365,-349.41807052,0.00020121,2]
[374103590,1753206648375,-460.0,0.00020121,2]
[374103591,1753206648385,-460.0,0.00020121,2]
[374103592,1753206648394,-688.95,0.00020121,2]
[374103593,1753206648404,-484.301205,0.00020187,2]
[374103594,1753206648415,-289.34632573,0.00020278,2]
[374103595,1753206648424,-2395.26254916,0.00020383,3]
[374103596,1753206648434,-1039.63,0.00020391,2]
[374103597,1753206648534,-1204.69,0.00020392,2]
[374103598,1753206648544,-496.27,0.00020392,2]
[374103599,1753206648554,-460.0,0.00020392,2]
[374103600,1753206648564,-460.0,0.00020392,2]
[374103601,1753206648573,-1072.57,0.00020392,2]
[374103602,1753206648583,-1174.48,0.00020392,2]
[374103603,1753206648593,-460.0,0.00020392,2]
[374103604,1753206648602,-1158.31,0.00020392,2]
[374103605,1753206648612,-460.0,0.00020392,2]
[374103606,1753206648621,-840.88,0.00020392,2]
[374103607,1753206648631,-773.58,0.00020392,2]
[374103608,1753206648640,-460.0,0.00020392,2]
[374103609,1753206648649,-460.0,0.00020392,2]
[374103610,1753206648659,-460.0,0.00020392,2]
[374103611,1753206648670,-460.0,0.00020395,2]
[374103612,1753206648680,-460.0,0.00020395,2]
[374103613,1753206648690,-437.14314511,0.00020395,2]
[374103614,1753206648699,-688.95,0.00020395,2]
[374103615,1753206648709,-1500.0,0.00020468,2]
[374103616,1753206648719,-223.985,0.00020573,2]
[374103617,1753206648729,-560.0,0.00020652,2]
[374103618,1753206648738,-2395.26254916,0.00020659,3]
[374103619,1753206648748,-1039.63,0.00020665,2]
[374103620,1753206648757,-1204.69,0.00020666,2]
[374103621,1753206648767,-496.27,0.00020666,2]
[374103622,1753206648776,-227.85,0.00020666,2]
[374103623,1753206648786,-460.0,0.00020666,2]
[374103624,1753206648795,-1072.57,0.00020666,2]
[374103625,1753206648805,-1174.48,0.00020666,2]
[374103626,1753206648814,-460.0,0.00020666,2]
[374103627,1753206648824,-1158.31,0.00020666,2]
[374103628,1753206648833,-460.0,0.00020666,2]
[374103629,1753206648843,-840.88,0.00020666,2]
[374103630,1753206648852,-773.58,0.00020666,2]
[374103631,1753206648861,-460.0,0.00020666,2]
[374103632,1753206648871,-460.0,0.00020666,2]
[374103633,1753206648882,-460.0,0.00020666,2]
[374103634,1753206648891,-460.0,0.00020669,2]
[374103635,1753206648901,-460.0,0.00020669,2]
[374103636,1753206648911,-688.95,0.00020669,2]
[374103637,1753206648921,-2395.26254916,0.00020934,4]
[374103638,1753206648930,-1039.63,0.00020939,2]
[374103639,1753206648940,-1204.69,0.0002094,2]
[374103640,1753206648952,-496.27,0.0002094,2]
[374103641,1753206648962,-460.0,0.0002094,2]
[374103642,1753206648971,-1072.57,0.0002094,2]
[374103643,1753206648981,-1174.48,0.0002094,2]
[374103644,1753206648991,-151.0,0.0002094,2]
[374103645,1753206649001,-151.0,0.0002094,2]
[374103646,1753206649010,-151.0,0.0002094,2]
[374103647,1753206649020,-151.0,0.0002094,2]
[374103648,1753206649031,-460.0,0.0002094,2]
[374103649,1753206649041,-1158.31,0.0002094,2]
[374103650,1753206649050,-460.0,0.0002094,2]
[374103651,1753206649060,-840.88,0.0002094,2]
[374103652,1753206649070,-773.58,0.0002094,2]
[374103653,1753206649080,-460.0,0.0002094,2]
[374103654,1753206649090,-460.0,0.0002094,2]
[374103655,1753206649101,-460.0,0.0002094,2]
[374103656,1753206649111,-460.0,0.00020943,2]
[374103657,1753206649122,-460.0,0.00020943,2]
[374103658,1753206649131,-688.95,0.00020943,2]
[374103659,1753206649141,-500.0,0.00020973,2]
[374103660,1753206649150,-500.0,0.00020973,2]
[374103661,1753206649159,-500.0,0.00020973,2]
[374103662,1753206649169,-155.0,0.00020974,2]
[374103663,1753206649178,-151.0,0.0002099,2]
[374103664,1753206649188,-151.0,0.0002099,2]
[374103665,1753206649198,-151.0,0.0002099,2]
[374103666,1753206649207,-503.16684721,0.00021011,2]
[374103667,1753206649217,-2000.0,0.00021016,2]
[374103668,1753206649226,-151.0,0.00021145,2]
[374103669,1753206649236,-274.08742551,0.00021145,2]
[374103670,1753206649245,-151.0,0.00021145,2]
[374103671,1753206649255,-151.0,0.00021145,2]
[374103672,1753206649265,-500.0,0.00021145,2]
[374103673,1753206649276,-151.0,0.00021145,2]
[374103674,1753206649285,-151.0,0.00021145,2]
[374103675,1753206649295,-151.0,0.00021145,2]
[374103676,1753206649306,-151.0,0.00021145,2]
[374103677,1753206649316,-151.75423861,0.00021145,2]
[374103678,1753206649326,-151.0,0.00021145,2]
[374103679,1753206649336,-151.0,0.00021145,2]
[374103680,1753206649347,-151.52218414,0.00021145,2]
[374103681,1753206649357,-154.39491513,0.00021145,2]
[374103682,1753206649368,-151.0,0.0002119,2]
[374103683,1753206649378,-660.0,0.000212,2]
[374103684,1753206649388,-2395.26254916,0.0002121,4]
[374103685,1753206649397,-1039.63,0.00021213,2]
[374103686,1753206649407,-1204.69,0.00021214,2]
[374103687,1753206649420,-496.27,0.00021214,2]
[374103688,1753206649430,-460.0,0.00021214,2]
[374103689,1753206649439,-1072.57,0.00021214,2]
[374103690,1753206649449,-1174.48,0.00021214,2]
[374103691,1753206649458,-460.0,0.00021214,2]
[374103692,1753206649467,-1158.31,0.00021214,2]
[374103693,1753206649477,-460.0,0.00021214,2]
[374103694,1753206649488,-840.88,0.00021214,2]
[374103695,1753206649498,-773.58,0.00021214,2]
[374103696,1753206649507,-460.0,0.00021214,2]
[374103697,1753206649517,-605.26414542,0.00021214,2]
[374103698,1753206649528,-460.0,0.00021214,2]
[374103699,1753206649537,-460.0,0.00021217,2]
[374103700,1753206649547,-359.5,0.00021217,2]
[374103701,1753206649556,-688.95,0.00021217,2]
[374103702,1753206649565,-168.0,0.0002129,2]
[374103703,1753206649575,-223.0315306,0.00021302,2]
[374103704,1753206649584,-780.51285141,0.00021314,2]
[374103705,1753206649592,-647.0,0.00021415,2]
[374103706,1753206649602,-2157.0,0.00021415,2]
[374103707,1753206649611,-968.0,0.00021415,2]
[374103708,1753206649620,-407.0,0.00021415,2]
[374103709,1753206649629,-151.0,0.00021415,2]
[374103710,1753206649638,-151.0,0.00021419,2]
[374103711,1753206649647,-151.0,0.00021419,2]
[374103712,1753206649656,-500.0,0.00021419,2]
[374103713,1753206649667,-151.0,0.00021419,2]
[374103714,1753206649677,-151.0,0.00021419,2]
[374103715,1753206649686,-168.0,0.00021483,2]
[374103716,1753206649695,-2395.26254916,0.00021486,5]
[374103717,1753206649705,-1039.63,0.00021487,2]
[374103718,1753206649715,-1204.69,0.00021488,2]
[374103719,1753206649724,-496.27,0.00021488,2]
[374103720,1753206649733,-1072.57,0.00021488,2]
[374103721,1753206649742,-1174.48,0.00021488,2]
[374103722,1753206649751,-152.029843,0.00021488,2]
[374103723,1753206649760,-151.0,0.00021488,2]
[374103724,1753206649770,-151.0,0.00021488,2]
[374103725,1753206649778,-460.0,0.00021488,2]
[374103726,1753206649788,-1158.31,0.00021488,2]
[374103727,1753206649797,-460.0,0.00021488,2]
[374103728,1753206649807,-840.88,0.00021488,2]
[374103729,1753206649816,-773.58,0.00021488,2]
[374103730,1753206649826,-460.0,0.00021488,2]
[374103731,1753206649835,-460.0,0.00021488,2]
[374103732,1753206649844,-460.0,0.00021491,2]
[374103733,1753206649854,-688.95,0.00021491,2]
[374103734,1753206649864,-168.0,0.00021495,2]
[374103735,1753206649873,-168.0,0.00021495,2]
[374103736,1753206649883,-1000.0,0.00021521,2]